bitfinex/quotes_ETHUSD_20251118
["timestamp","ask_amount","ask_price","bid_price","bid_amount"]
[1763449392641,0.0344,2990.9,2990.3,0.195]
[1763449392851,0.289,2990.8,2990.3,0.195]
[1763449393071,0.289,2990.8,2990.1,0.195]
[1763449393072,0.04179623,2990.7,2990.1,0.195]
[1763449393753,0.289,2990.8,2990.1,0.6461]
[1763449394474,0.289,2990.7,2990.2,0.856604]
[1763449395072,0.289,2990.7,2990.3,0.4511]
[1763449395274,3.34291636,2991.4,2990.3,0.4511]
[1763449395472,6.68584429,2991.4,2990.3,0.4511]
[1763449395676,0.0344,2991.9,2990.4,0.405504]
[1763449395677,3.34248605,2991.8,2990.4,0.405504]
[1763449395885,1.19599264,2991.7,2990.4,0.405504]
[1763449396171,1.19599264,2991.7,2990.6,0.405504]
[1763449396574,3.34280461,2991.5,2990.6,0.405504]
[1763449396776,0.289,2991.6,2990.6,0.405504]
[1763449396952,3.63169885,2991.6,2990.6,0.405504]
[1763449397275,6.9743889,2991.6,2990.6,0.856604]
[1763449397854,6.9743889,2991.6,2990.1,0.195]
[1763449397855,10.31708335,2991.6,2990.1,0.195]
[1763449398182,0.94139264,2991.5,2990.0,0.195]
[1763449398386,0.90699264,2991.0,2990.0,0.195]
[1763449398585,0.90699264,2990.7,2989.6,0.4521]
[1763449398776,0.04179763,2990.6,2989.8,0.195]
[1763449399089,0.289,2990.5,2989.8,0.195]
[1763449399380,0.04180042,2990.4,2989.8,0.195]
[1763449399595,0.289,2990.5,2989.8,0.195]
[1763449399754,1.60645668,2990.8,2989.8,0.195]
[1763449399949,0.289,2990.7,2989.8,0.6702]
[1763449400983,6.9764915,2990.7,2990.0,0.001]
[1763449401209,3.32099264,2990.6,2990.0,0.001]
[1763449401851,2.703,2990.5,2990.1,0.1919]
[1763449402698,2.703,2990.5,2990.1,0.6671]
[1763449402878,6.04693383,2990.5,2990.1,0.1919]
[1763449403089,6.04693383,2990.5,2990.0,0.001]
[1763449403090,6.97686766,2990.5,2990.0,0.001]
[1763449403990,0.289,2990.4,2990.0,0.001]
[1763449404458,1.19599264,2990.4,2990.0,0.001]
[1763449404659,6.68829214,2990.3,2990.0,0.001]
[1763449404982,0.0344,2990.1,2990.0,0.001]
[1763449406303,0.74002736,2990.1,2990.0,0.001]
[1763449407106,4.08439711,2990.1,2990.0,0.001]
[1763449407672,4.99138975,2990.1,2990.0,0.001]
[1763449407908,5.93792841,2990.1,2990.0,0.001]
[1763449408074,5.89612379,2990.1,2990.0,0.001]
[1763449408275,5.31378975,2990.1,2990.0,0.001]
[1763449409108,5.35559437,2990.1,2990.0,1.291]
[1763449409311,6.18412379,2990.1,2990.0,1.291]
[1763449410076,5.31378975,2990.1,2990.0,1.291]
[1763449411102,7.72978975,2990.1,2990.0,1.291]
[1763449411810,4.99138975,2990.1,2990.0,1.291]
[1763449412119,4.57376239,2990.1,2990.0,1.291]
[1763449412417,0.288,2990.1,2990.0,1.291]
[1763449412794,0.3224,2990.1,2990.0,1.291]
[1763449412994,0.3568,2990.1,2990.0,1.291]
[1763449413299,1.26379264,2990.1,2990.0,1.291]
[1763449413694,4.60816239,2990.1,2990.0,1.291]
[1763449416730,5.05547101,2990.1,2990.0,1.291]
[1763449416897,5.71820233,2990.1,2990.0,1.291]
[1763449417823,5.76000695,2990.1,2990.0,1.291]
[1763449418399,5.71820233,2990.1,2990.0,1.291]
[1763449418803,4.99029833,2990.1,2990.0,1.291]
[1763449418999,4.60816239,2990.1,2990.0,1.291]
[1763449419710,4.28576239,2990.1,2990.0,1.291]
[1763449420030,3.66676975,2990.1,2990.0,1.291]
[1763449420328,0.90699264,2990.1,2990.0,1.291]
[1763449420490,4.53936239,2990.1,2990.0,1.291]
[1763449420995,3.63236975,2990.1,2990.0,1.291]
[1763449421196,6.95536239,2990.1,2990.0,1.291]
[1763449421698,4.25136239,2990.1,2990.0,1.291]
[1763449421893,6.95536239,2990.1,2990.0,1.291]
[1763449422098,0.90699264,2990.1,2990.0,1.7597]
[1763449422304,1.19499264,2990.1,2990.0,1.291]
[1763449422499,0.288,2990.1,2990.0,2.2211]
[1763449422720,0.288,2990.1,2990.0,2.44321]
[1763449423417,10.03180713,2990.5,2990.0,1.7597]
[1763449423747,6.68829214,2990.3,2990.0,1.291]
[1763449424624,0.04180322,2990.2,2990.0,1.291]
[1763449424924,0.288,2990.2,2990.0,1.291]
[1763449425732,0.90699264,2990.1,2990.0,1.7524]
[1763449425933,0.90699264,2990.1,2990.0,2.2211]
[1763449426095,0.288,2990.1,2990.0,2.2211]
[1763449426300,0.90699264,2990.6,2990.0,2.2211]
[1763449426524,3.34336342,2991.0,2990.5,0.4687]
[1763449426726,1.19499264,2990.9,2990.1,0.4614]
[1763449427201,0.32979483,2990.8,2990.1,0.4614]
[1763449427402,0.32979483,2990.8,2990.2,0.199435]
[1763449427615,0.32979483,2990.8,2990.1,0.4614]
[1763449428016,0.90699264,2990.6,2990.1,0.4614]
[1763449429314,0.90699264,2991.0,2990.5,0.4687]
[1763449429522,0.0364,2992.0,2990.6,0.4687]
[1763449429523,0.288,2990.9,2990.6,0.4687]
[1763449429713,0.32979483,2990.8,2990.1,0.4614]
[1763449430111,3.34369879,2990.7,2990.1,0.4614]
[1763449430511,0.90699264,2990.6,2990.0,1.291]
[1763449431346,2.416,2990.5,2990.0,1.291]
[1763449431642,0.288,2990.4,2990.0,1.291]
[1763449432012,3.3442579,2990.2,2990.0,1.291]
[1763449432217,0.98319726,2990.1,2990.0,1.291]
[1763449432653,0.94139264,2990.1,2990.0,1.291]
[1763449433027,1.42310126,2990.1,2990.0,1.291]
[1763449433250,0.405504,2990.0,2989.4,0.001]
[1763449433553,1.42310126,2990.1,2989.4,0.001]
[1763449433554,10.50717395,2989.8,2989.4,0.001]
[1763449433928,1.31249664,2989.7,2989.4,0.001]
[1763449434256,4.76592405,2989.7,2989.4,0.001]
[1763449434419,8.11074125,2989.7,2989.4,0.001]
[1763449434624,8.11074125,2989.7,2989.1,0.001]
[1763449434625,0.438904,2989.5,2989.1,0.001]
[1763449434951,1.31249664,2989.1,2988.0,0.001]
[1763449435152,9.62752344,2988.6,2988.0,0.001]
[1763449435319,9.91552344,2988.6,2988.0,0.001]
[1763449435514,9.94892344,2988.6,2988.0,0.001]
[1763449436139,13.70047575,2988.6,2988.0,0.001]
[1763449436325,13.70047575,2988.6,2988.2,0.001]
[1763449436921,1.31249664,2988.5,2988.2,0.001]
[1763449437116,0.438904,2988.4,2988.2,0.001]
[1763449437321,0.760304,2988.4,2988.2,0.001]
[1763449438368,5.01356889,2988.4,2988.2,0.001]
[1763449438538,4.25326489,2988.4,2988.2,0.001]
[1763449438850,4.61649329,2988.4,2988.2,0.001]
[1763449439054,5.02199729,2988.4,2988.2,0.001]
[1763449439257,4.98016889,2988.4,2988.2,0.001]
[1763449439425,5.01356889,2988.4,2988.2,0.001]
[1763449439852,1.37929664,2988.3,2988.0,0.001]
[1763449440033,10.03302744,2988.1,2988.0,0.001]
[1763449440430,13.37963565,2988.1,2988.0,0.001]
[1763449440622,13.66763565,2988.1,2988.0,0.001]
[1763449440823,13.70103565,2988.1,2988.0,0.001]
[1763449441058,1.37929664,2988.0,2987.3,0.001]
[1763449441269,9.59412344,2987.4,2987.3,0.001]
[1763449441426,9.88212344,2987.4,2987.3,0.001]
[1763449441789,9.91552344,2987.4,2987.3,0.001]
[1763449442068,1.31249664,2987.3,2986.0,0.1984]
[1763449442223,0.90699264,2986.2,2986.0,0.1984]
[1763449442423,4.54384231,2986.1,2986.0,0.1984]
[1763449442835,4.54384231,2986.1,2986.0,1.1285]
[1763449443039,1.19499264,2986.1,2986.0,1.1285]
[1763449443569,0.90699264,2987.7,2986.0,1.1285]
[1763449443775,0.90699264,2987.7,2986.4,0.4687]
[1763449444146,8.6871308,2987.4,2986.5,0.4614]
[1763449444339,4.25455829,2987.3,2986.5,0.4614]
[1763449444647,4.25455829,2987.3,2987.0,0.1984]
[1763449444824,0.288,2987.2,2987.0,0.1984]
[1763449445272,0.288,2987.2,2987.1,0.4687]
[1763449445588,9.016976,2987.2,2987.0,0.1984]
[1763449445883,0.94039264,2987.1,2986.1,0.4745]
[1763449446027,0.90699264,2986.6,2986.1,0.4745]
[1763449446222,0.288,2986.5,2986.1,0.4745]
[1763449446456,0.90699264,2986.6,2986.5,0.4642]
[1763449446685,0.90699264,2986.6,2986.0,0.1984]
[1763449446686,0.288,2986.4,2986.0,0.1984]
[1763449446965,0.288,2986.4,2985.6,0.4745]
[1763449446966,0.90699264,2986.1,2985.6,0.4745]
[1763449447127,0.288,2986.0,2985.6,0.4745]
[1763449447637,0.90699264,2986.1,2985.9,0.4642]
[1763449447837,0.288,2986.0,2985.6,0.4745]
[1763449448254,0.90699264,2986.1,2985.6,0.4745]
[1763449448255,0.90699264,2986.1,2985.9,0.4642]
[1763449448458,4.54395446,2986.0,2985.9,0.4642]
[1763449448660,0.90699264,2985.9,2985.6,0.4745]
[1763449449040,0.90699264,2986.5,2985.8,0.4642]
[1763449449231,0.90699264,2986.9,2986.4,0.6481]
[1763449449571,0.288,2986.8,2986.4,0.1839]
[1763449450466,0.90699264,2986.6,2986.4,0.1839]
[1763449450659,0.90699264,2986.4,2985.6,0.4745]
[1763449450959,0.288,2986.3,2985.6,0.4745]
[1763449451168,3.32499264,2986.2,2985.6,0.4745]
[1763449451463,10.04453073,2986.7,2985.6,0.4745]
[1763449451464,0.90699264,2986.6,2986.2,0.6481]
[1763449451626,0.90699264,2986.3,2985.6,0.4745]
[1763449452468,0.288,2986.2,2985.6,0.4745]
[1763449452947,4.25561802,2986.3,2986.1,0.6481]
[1763449453135,4.25561802,2986.3,2986.2,0.4642]
[1763449453334,4.54361802,2986.3,2986.2,0.4642]
[1763449453668,1.19499264,2986.3,2986.2,0.9387]
[1763449454059,0.288,2986.3,2986.2,0.9387]
[1763449454260,3.34843576,2986.5,2986.2,0.9387]
[1763449454466,0.288,2986.4,2986.3,0.4745]
[1763449454851,3.34820407,2986.7,2986.3,0.4745]
[1763449454852,4.25524422,2986.7,2986.3,0.9387]
[1763449455051,8.6871308,2987.0,2986.6,0.4642]
[1763449455248,1.19499264,2986.9,2986.6,0.4642]
[1763449455447,1.19499264,2986.9,2986.6,0.9387]
[1763449455656,1.19499264,2986.9,2986.6,0.4642]
[1763449455872,1.19499264,2986.9,2986.7,0.4745]
[1763449456166,1.19499264,2986.9,2986.8,0.4642]
[1763449456337,1.23684204,2986.9,2986.3,0.4745]
[1763449456536,6.69612962,2986.8,2986.3,0.4745]
[1763449456853,3.34806481,2986.8,2986.3,0.4745]
[1763449457072,3.34761649,2987.2,2986.7,0.4642]
[1763449457402,3.34761649,2987.2,2986.3,0.4745]
[1763449457403,3.3495373,2987.3,2987.2,0.6481]
[1763449457542,0.90699264,2987.2,2987.0,0.1839]
[1763449458044,0.90699264,2987.2,2987.1,0.9387]
[1763449458386,0.288,2987.2,2987.1,0.9387]
[1763449458871,0.90899264,2987.3,2987.1,0.9387]
[1763449459044,0.90899264,2987.3,2987.0,0.1839]
[1763449459045,0.90899264,2987.3,2987.2,0.967]
[1763449459251,4.54449707,2987.3,2987.2,0.967]
[1763449459572,4.54449707,2987.3,2987.2,0.4817]
[1763449459770,1.19699264,2987.3,2987.2,0.4817]
[1763449459967,1.19699264,2987.3,2987.2,0.967]
[1763449460573,0.90899264,2987.3,2987.2,0.967]
[1763449460772,1.19699264,2987.3,2987.0,0.1839]
[1763449460961,7.8920015,2987.3,2987.0,0.1839]
[1763449461161,2.418,2987.2,2986.8,0.4853]
[1763449461340,2.418,2987.2,2986.4,0.4853]
[1763449461341,0.90699264,2986.9,2986.4,0.4853]
[1763449461541,8.6871308,2986.6,2986.4,0.4853]
[1763449461979,9.59412344,2986.6,2986.5,0.4817]
[1763449462464,9.59412344,2986.6,2986.5,0.967]
[1763449462465,0.90699264,2986.6,2986.5,0.967]
[1763449462776,0.002,2987.3,2986.5,0.967]
[1763449463099,0.002,2987.6,2987.2,0.6703]
[1763449463379,3.34593636,2988.7,2987.8,0.4817]
[1763449463578,0.967,2988.8,2988.4,0.1886]
[1763449463579,0.288,2988.6,2988.4,0.1886]
[1763449463743,12.03299529,2988.8,2988.4,0.1886]
[1763449463744,8.6871308,2988.8,2988.5,0.4817]
[1763449463944,0.288,2988.7,2988.4,0.1886]
[1763449464142,1.19499264,2988.7,2988.4,0.1886]
[1763449464446,0.0394,2989.2,2988.6,0.4817]
[1763449464447,8.6871308,2989.2,2988.6,0.4817]
[1763449464652,8.6871308,2989.2,2988.7,0.4817]
[1763449464946,0.288,2989.1,2988.5,0.4853]
[1763449465147,8.6871308,2989.6,2988.5,0.4853]
[1763449465347,8.6871308,2989.6,2989.0,0.4817]
[1763449465348,0.288,2989.5,2989.0,0.4817]
[1763449465678,12.03207276,2989.6,2989.0,0.4817]
[1763449465880,0.288,2989.4,2989.1,0.4853]
[1763449466083,0.0418158,2989.3,2989.0,0.4817]
[1763449466287,8.6871308,2989.2,2988.6,0.4853]
[1763449466656,0.90699264,2989.1,2988.6,0.4853]
[1763449466858,0.288,2989.0,2988.6,0.4853]
[1763449467384,8.6871308,2989.8,2988.9,0.4817]
[1763449467750,1.19499264,2989.7,2989.0,0.4853]
[1763449467948,0.04181161,2989.6,2989.0,0.4853]
[1763449468151,1.19499264,2989.7,2989.0,0.4853]
[1763449468592,0.90699264,2989.5,2989.0,0.4853]
[1763449468747,0.90699264,2989.6,2989.0,0.4853]
[1763449469008,8.6871308,2989.8,2989.5,0.4817]
[1763449469308,1.23680285,2989.7,2989.0,0.4853]
[1763449469721,1.19499264,2989.7,2989.0,0.4853]
[1763449470438,1.19499264,2989.7,2989.6,0.4817]
[1763449470736,4.53980984,2989.7,2989.6,0.4817]
[1763449470935,0.90699264,2989.7,2989.6,0.4817]
[1763449471247,0.90699264,2989.7,2988.4,0.1886]
[1763449471248,10.30262704,2989.7,2989.0,0.4853]
[1763449471941,0.90699264,2989.7,2989.6,0.4817]
[1763449472244,0.90699264,2989.7,2989.0,0.4853]
[1763449472245,2.74781021,2989.7,2989.0,0.4853]
[1763449472543,2.706,2989.7,2989.0,0.4853]
[1763449472755,1.19499264,2989.7,2989.0,0.4853]
[1763449472959,0.288,2989.7,2989.0,0.4853]
[1763449473158,0.04180602,2990.0,2989.6,0.4817]
[1763449473461,0.32980741,2989.9,2989.6,0.4817]
[1763449473647,0.288,2989.9,2989.7,0.4853]
[1763449473849,0.90699264,2990.1,2989.7,0.4853]
[1763449474033,0.288,2990.0,2989.7,0.4853]
[1763449474748,0.002,2990.2,2989.9,0.4817]
[1763449474951,0.002,2990.2,2990.1,0.6703]
[1763449475131,0.29,2990.2,2990.1,0.6703]
[1763449475332,0.002,2990.5,2990.1,1.1556]
[1763449475534,0.002,2990.5,2990.4,0.4817]
[1763449475848,0.29,2990.5,2990.4,0.4817]
[1763449476053,0.29,2990.5,2990.4,0.9754]
[1763449476379,0.29,2990.5,2990.4,0.4817]
[1763449476753,0.29,2990.5,2990.1,0.1886]
[1763449477062,8.6871308,2990.2,2989.8,0.1893]
[1763449477238,0.288,2990.1,2989.8,0.1893]
[1763449477440,0.288,2990.1,2989.5,0.1893]
[1763449477441,0.04180602,2990.0,2989.5,0.1893]
[1763449477966,0.288,2990.1,2989.9,0.4976]
[1763449478465,0.288,2990.1,2989.6,0.4937]
[1763449478666,0.04180602,2990.0,2989.6,0.4937]
[1763449478867,3.34459346,2989.9,2989.6,0.4937]
[1763449479368,4.2933068,2990.0,2989.6,0.4937]
[1763449479766,7.63781494,2990.0,2989.6,0.4937]
[1763449479968,4.25150078,2990.0,2989.6,0.4937]
[1763449480374,4.53945225,2990.1,2989.6,0.4937]
[1763449480571,1.19499264,2990.1,2990.0,0.4976]
[1763449480875,4.53936239,2990.1,2990.0,0.4976]
[1763449481173,9.09173214,2990.1,2989.6,0.4937]
[1763449481352,0.04180602,2990.0,2989.6,0.4937]
[1763449481947,0.04180602,2990.0,2987.1,2.40180428]
[1763449481948,0.90699264,2989.8,2989.3,0.1893]
[1763449482148,0.32981021,2989.7,2989.3,0.1893]
[1763449483484,8.6871308,2989.5,2989.1,0.683]
[1763449483645,8.6871308,2989.5,2988.6,0.4937]
[1763449483986,8.6871308,2989.1,2988.6,0.4937]
[1763449484153,0.288,2989.0,2988.6,0.4937]
[1763449484556,0.288,2989.0,2988.9,0.4976]
[1763449485384,9.59412344,2989.5,2988.9,0.4976]
[1763449485548,1.19499264,2989.4,2988.9,0.9913]
[1763449486053,1.19499264,2989.4,2989.3,0.1893]
[1763449486254,1.19499264,2989.4,2989.3,1.1806]
[1763449486468,1.19499264,2989.4,2988.7,0.4937]
[1763449487180,1.19499264,2989.4,2989.3,0.6869]
[1763449487379,0.288,2989.4,2989.3,0.6869]
[1763449487697,0.288,2989.4,2988.8,0.4937]
[1763449487895,0.0418158,2989.3,2988.8,0.4937]
[1763449488093,0.288,2989.4,2988.8,0.4937]
[1763449488297,0.288,2989.4,2989.2,0.4976]
[1763449488600,0.288,2989.4,2988.8,0.4937]
[1763449488601,0.90699264,2989.8,2989.3,0.6869]
[1763449488921,0.90699264,2989.5,2988.8,0.4937]
[1763449489206,0.4171,2988.9,2988.4,0.001]
[1763449489365,0.288,2988.8,2988.4,0.001]
[1763449489566,0.0026,2988.5,2988.4,0.001]
[1763449490294,0.294,2988.5,2988.4,0.001]
[1763449490679,0.288,2988.5,2988.4,0.001]
[1763449491213,2.704,2988.5,2988.4,0.001]
[1763449491803,1.752,2988.5,2988.4,0.001]
[1763449491963,0.288,2988.5,2988.4,0.001]
[1763449497278,0.544,2988.5,2988.4,0.001]
[1763449497884,0.54576151,2988.5,2988.4,0.001]
[1763449498501,5.09891443,2988.5,2988.4,0.001]
[1763449498702,13.9873602,2988.5,2988.4,0.001]
[1763449499108,14.2753602,2988.5,2988.4,0.001]
[1763449500224,1.45275415,2988.5,2988.4,0.001]
[1763449500603,1.16165415,2988.5,2988.4,0.001]
[1763449500911,1.74079264,2988.5,2988.4,0.001]
[1763449501110,4.15679264,2988.5,2988.4,0.001]
[1763449501312,1.45279264,2988.5,2988.4,0.001]
[1763449501488,0.90699264,2988.5,2988.4,0.001]
[1763449501691,1.45129264,2988.5,2988.4,0.001]
[1763449502116,1.19499264,2988.5,2988.4,0.001]
[1763449502431,0.1247,2989.1,2988.5,0.405504]
[1763449502632,0.2901,2990.1,2988.9,0.405504]
[1763449502920,0.2901,2990.1,2988.5,0.405504]
[1763449502921,0.5781,2989.7,2988.5,0.405504]
[1763449503227,0.2901,2990.1,2988.5,0.899204]
[1763449503519,0.288,2990.0,2988.5,0.899204]
[1763449503682,0.126,2990.3,2988.7,0.405504]
[1763449503882,0.5781,2990.2,2988.7,0.405504]
[1763449504077,0.5781,2990.2,2988.4,0.001]
[1763449504078,0.2901,2990.1,2988.4,2.80830828]
[1763449504325,3.63454724,2990.1,2988.8,0.405504]
[1763449504533,0.2901,2990.0,2988.8,0.405504]
[1763449504700,1.19709264,2990.0,2988.8,0.405504]
[1763449504886,0.2901,2990.0,2988.9,0.405504]
[1763449505287,0.2901,2990.0,2989.1,0.405504]
[1763449505601,0.2901,2990.0,2989.1,0.1893]
[1763449505804,1.19499264,2990.2,2989.1,0.683]
[1763449505978,0.2901,2990.1,2989.1,0.1893]
[1763449506184,0.90699264,2990.2,2989.1,0.6854]
[1763449506383,0.4161,2990.3,2989.3,0.405504]
[1763449506613,0.288,2990.2,2989.3,0.405504]
[1763449506829,0.126,2990.3,2989.5,0.405504]
[1763449507027,0.288,2990.2,2989.5,0.405504]
[1763449507222,0.288,2990.2,2989.7,0.405504]
[1763449507445,0.002,2990.4,2990.2,0.405504]
[1763449507648,0.002,2990.4,2990.3,0.902104]
[1763449507850,0.29,2990.4,2990.3,1.398204]
[1763449508072,0.29,2990.4,2990.3,0.405504]
[1763449508212,0.002,2990.4,2990.3,1.398204]
[1763449508416,0.29,2990.4,2990.3,1.398204]
[1763449508834,0.002,2990.4,2990.3,1.398204]
[1763449509436,0.29,2990.4,2990.3,1.398204]
[1763449509942,0.002,2990.4,2990.3,3.80000828]
[1763449510142,0.29,2990.4,2990.3,5.11827369]
[1763449510344,0.29,2990.4,2990.3,2.71646941]
[1763449510540,0.002,2990.4,2990.3,2.71646941]
[1763449510747,0.29,2990.4,2990.3,2.71646941]
[1763449511120,1.498,2990.4,2990.3,2.71646941]
[1763449511827,1.498,2990.4,2990.3,1.398204]
[1763449512030,0.002,2990.5,2990.3,1.398204]
[1763449512228,0.002,2990.7,2990.4,1.398204]
[1763449512428,1.21,2991.7,2990.7,0.902104]
[1763449512646,1.21,2991.7,2990.9,0.902104]
[1763449512847,1.21,2991.0,2990.9,0.902104]
[1763449513034,1.497,2991.0,2990.9,1.398204]
[1763449514844,1.497,2991.0,2990.9,0.902104]
[1763449515041,1.497,2991.0,2990.9,1.398204]
[1763449515653,1.497,2991.0,2990.9,0.902104]
[1763449515855,1.497,2991.0,2990.9,1.398204]
[1763449517555,0.002,2991.0,2990.9,1.398204]
[1763449517754,1.496,2991.0,2990.9,1.398204]
[1763449517933,1.496,2991.0,2990.9,0.902104]
[1763449518134,1.496,2991.0,2990.9,1.398204]
[1763449518455,1.496,2991.0,2990.9,0.405504]
[1763449518756,1.496,2991.0,2990.9,1.398204]
[1763449518959,1.209,2991.0,2990.9,1.398204]
[1763449519258,1.496,2991.0,2990.9,1.398204]
[1763449519624,0.002,2991.0,2990.9,1.398204]
[1763449520044,0.002,2991.7,2991.0,1.376904]
[1763449520253,0.002,2991.7,2991.6,1.080904]
[1763449520448,1.496,2991.7,2991.6,1.080904]
[1763449520651,1.496,2991.7,2991.6,1.573904]
[1763449522447,0.002,2991.7,2991.6,1.573904]
[1763449522649,0.002,2992.0,2991.7,0.405504]
[1763449522825,0.002,2992.0,2991.9,0.883904]
[1763449523035,1.207,2992.0,2991.9,0.883904]
[1763449523238,1.207,2992.0,2991.9,1.376904]
[1763449523864,1.494,2992.0,2991.9,1.376904]
[1763449524231,3.38222317,2993.6,2992.0,0.405504]
[1763449524430,3.38222317,2993.6,2992.2,1.080904]
[1763449524628,1.496,2992.3,2992.2,1.080904]
[1763449524857,0.289,2992.3,2992.2,0.405504]
[1763449525067,0.289,2992.3,2992.2,0.883904]
[1763449525447,0.002,2992.3,2992.2,1.376904]
[1763449525776,0.289,2992.3,2992.2,1.376904]
[1763449526961,0.002,2992.3,2992.2,1.376904]
[1763449527263,0.289,2992.3,2992.2,1.376904]
[1763449527631,3.33989176,2994.2,2992.3,0.405504]
[1763449527850,0.287,2993.9,2992.5,0.405504]
[1763449528052,1.2357442,2993.9,2992.5,0.405504]
[1763449528256,0.287,2993.9,2992.7,0.405504]
[1763449528650,0.287,2993.9,2992.9,0.405504]
[1763449529051,0.0454,2994.0,2993.1,0.405504]
[1763449529268,3.34137496,2994.6,2993.0,0.493]
[1763449529269,0.002,2994.6,2994.0,0.405504]
[1763449529469,0.287,2994.5,2994.0,0.883904]
[1763449529837,0.287,2994.5,2994.1,0.405504]
[1763449530164,0.002,2994.6,2994.0,0.405504]
[1763449530363,0.287,2994.5,2994.3,0.405504]
[1763449530666,0.287,2994.5,2994.0,0.405504]
[1763449531032,0.287,2994.5,2994.0,0.898504]
[1763449531237,0.002,2994.6,2993.9,0.197]
[1763449531238,0.002,2994.6,2994.5,0.405504]
[1763449531492,1.209,2994.6,2994.5,1.376904]
[1763449531777,1.496,2994.6,2994.2,0.493]
[1763449531945,1.496,2994.6,2994.3,0.405504]
[1763449532374,0.002,2994.6,2994.4,0.493]
[1763449532672,0.002,2994.6,2994.4,0.405504]
[1763449532673,1.494,2994.5,2994.4,0.405504]
[1763449532900,1.494,2994.5,2993.9,0.69]
[1763449533124,1.494,2994.5,2993.9,0.197]
[1763449533577,1.494,2994.5,2994.0,0.405504]
[1763449533757,1.494,2994.5,2994.0,0.898504]
[1763449534077,1.493,2994.4,2994.0,0.898504]
[1763449534281,1.493,2994.4,2992.9,0.197]
[1763449534282,0.2961,2994.1,2993.1,0.493]
[1763449534586,9.23019593,2994.0,2992.9,0.197]
[1763449534784,1.53549264,2993.9,2992.8,0.197]
[1763449535088,1.53549264,2993.9,2992.1,0.493]
[1763449535587,1.53549264,2993.9,2992.2,0.405504]
[1763449535885,0.2961,2993.8,2992.2,0.405504]
[1763449536089,0.2961,2993.8,2992.3,0.4654]
[1763449536464,0.2961,2993.8,2992.4,0.405504]
[1763449536788,0.2961,2993.8,2992.4,0.870904]
[1763449537194,1.23939264,2993.9,2992.6,0.405504]
[1763449537356,0.0454,2993.9,2992.6,0.405504]
[1763449537685,0.0454,2993.9,2992.8,0.405504]
[1763449537898,1.206,2994.0,2993.9,0.405504]
[1763449538101,2.412,2994.0,2993.9,0.405504]
[1763449538268,2.699,2994.0,2993.9,1.339004]
[1763449538467,1.493,2994.0,2993.9,1.339004]
[1763449539096,0.287,2994.0,2993.9,1.339004]
[1763449539303,1.493,2994.0,2993.9,1.339004]
[1763449539477,1.206,2994.0,2993.9,1.339004]
[1763449539878,0.002,2994.9,2994.7,0.4681]
[1763449540078,0.1916,2997.3,2995.2,1.78059664]
[1763449540426,0.1916,2997.3,2995.1,9.23484577]
[1763449540427,0.1916,2997.3,2996.2,0.511204]
[1763449540575,0.587,2996.3,2996.2,0.976604]
[1763449541311,1.793,2996.3,2996.2,0.511204]
[1763449541495,1.793,2996.3,2996.2,0.976604]
[1763449541896,1.793,2996.3,2996.2,0.405504]
[1763449542311,2.2789,2996.3,2995.2,0.4654]
[1763449542473,1.793,2996.3,2995.2,0.4654]
[1763449542675,0.1916,2995.3,2994.2,0.4654]
[1763449542888,0.287,2995.2,2994.2,0.4654]
[1763449543088,0.7729,2995.2,2993.9,0.4654]
[1763449543301,0.287,2995.1,2993.9,0.4654]
[1763449543605,1.493,2995.1,2993.9,0.4654]
[1763449543777,1.493,2995.1,2994.0,0.405504]
[1763449543978,1.493,2995.1,2993.9,0.4654]
[1763449544404,1.493,2995.1,2994.0,0.405504]
[1763449544782,0.4859,2995.0,2993.9,0.4654]
[1763449545616,0.4859,2995.0,2993.8,0.1807]
[1763449545808,0.90699264,2994.9,2993.2,0.1807]
[1763449546119,0.94873026,2994.9,2993.2,0.1807]
[1763449546273,9.18844577,2994.6,2993.2,0.1807]
[1763449546478,0.287,2994.5,2993.2,0.1807]
[1763449546687,9.18844577,2994.2,2992.7,0.1807]
[1763449546924,9.18844577,2994.2,2991.7,0.001]
[1763449546925,0.1916,2993.3,2991.7,0.4664]
[1763449547084,0.287,2993.2,2992.0,0.001]
[1763449547286,0.7729,2993.2,2992.0,0.001]
[1763449547486,4.11383324,2993.2,2992.0,0.001]
[1763449547814,0.7729,2993.1,2992.0,0.001]
[1763449548209,0.4859,2993.0,2992.0,0.001]
[1763449548549,0.1916,2993.3,2992.2,0.405504]
[1763449548930,0.1916,2995.0,2992.4,0.405504]
[1763449548931,0.287,2993.2,2992.4,0.405504]
[1763449549245,1.09859264,2994.0,2992.3,0.001]
[1763449549246,0.287,2993.1,2992.3,0.001]
[1763449551245,2.412,2993.0,2992.3,0.001]
[1763449551398,0.1916,2992.4,2992.3,0.001]
[1763449551605,0.4786,2992.4,2992.3,0.001]
[1763449551832,0.9645,2992.4,2992.3,0.001]
[1763449552149,0.9645,2992.4,2992.0,0.001]
[1763449552150,11.05993841,2992.4,2992.0,0.001]
[1763449552310,1.43466652,2992.3,2992.0,0.001]
[1763449552510,9.67434577,2992.3,2992.0,0.001]
[1763449552810,0.4859,2992.2,2992.0,0.001]
[1763449553010,0.287,2992.1,2992.0,0.001]
[1763449553511,0.7729,2992.1,2992.0,0.001]
[1763449553716,0.1916,2992.4,2992.0,0.001]